fUST/lending_fUST_20260106
["ID","MTS","AMOUNT","RATE_DAILY","PERIOD"]
[400554578,1767714641380,-265.13486151,0.00017898,2]
[400554580,1767714641389,-5888.0,0.00017936,2]
[400554582,1767714641398,-2895.16188097,0.00017998,2]
[400554584,1767714641407,-999.999999,0.00018,2]
[400554585,1767714641416,-1000.0,0.00018032,2]
[400554587,1767714641426,-492.0,0.00018032,2]
[400554589,1767714641435,-151.0,0.00018097,2]
[400554590,1767714641444,-861.0441152,0.00018097,2]
[400554591,1767714641454,-1340.1076058,0.00018097,2]
[400554592,1767714641463,-2000.0,0.0001816,7]
[400554593,1767714641472,-745.32339405,0.00018239,2]
[400554594,1767714641482,-617.40005154,0.00018334,2]
[400554595,1767714641491,-2982.60894464,0.00018334,2]
[400554596,1767714641500,-420.194198,0.00018493,2]
[400554597,1767714641509,-151.0,0.00018512,2]
[400554598,1767714641518,-2000.0,0.00018818,7]
[400554599,1767714641527,-640.24385345,0.00018882,2]
[400554600,1767714641536,-3092.96547559,0.00018882,2]
[400554601,1767714641545,-42279.56725066,0.000189,2]
[400554602,1767714641555,-303.43083173,0.000189,2]
[400554603,1767714641563,-628.0,0.00018909,2]
[400554604,1767714641572,-1365.0,0.00018909,2]
[400554605,1767714641581,-2145.0,0.00018909,2]
[400554606,1767714641591,-417.0,0.00018909,2]
[400554607,1767714641600,-151.0,0.00018926,2]
[400554608,1767714641609,-1807.60737912,0.00018996,2]
[400554609,1767714641618,-303.43083173,0.00019089,2]
[400554610,1767714641628,-500.0,0.000191,2]
[400554611,1767714641638,-239.28471196,0.00019178,2]
[400554612,1767714641647,-957.13884785,0.00019178,2]
[400554613,1767714641657,-2153.56240765,0.00019178,2]
[400554614,1767714641666,-3828.55539139,0.00019178,2]
[400554615,1767714641676,-5982.11779904,0.00019178,2]
[400554616,1767714641685,-8614.24963062,0.00019178,2]
[400554617,1767714641695,-193.25080339,0.00019178,2]
[400554619,1767714641704,-772.23021035,0.00019178,2]
[400554620,1767714641713,-2000.0,0.00019178,3]
[400554622,1767714641722,-335.5533587,0.00019178,2]
[400554624,1767714641732,-1342.21343481,0.00019178,2]
[400554626,1767714641741,-3019.98022831,0.00019178,2]
[400554628,1767714641751,-5363.48488549,0.00019178,2]
[400554630,1767714641760,-336.31904722,0.00019178,2]
[400554633,1767714641770,-1345.27618886,0.00019178,2]
[400554634,1767714641779,-3026.87142494,0.00019178,2]
[400554636,1767714641788,-5375.72365068,0.00019178,2]
[400554638,1767714641799,-1991.83840283,0.00019178,3]
[400554654,1767714641944,-191.004961,0.00019178,2]
[400554656,1767714641954,-151.0,0.00019178,2]
[400554658,1767714641964,-151.0,0.00019178,2]
[400554660,1767714641973,-151.0,0.00019178,2]
[400554662,1767714641982,-151.0,0.00019178,2]
[400554664,1767714641991,-151.0,0.00019178,2]
[400554666,1767714642000,-151.0,0.00019178,2]
[400554668,1767714642009,-151.0,0.00019178,2]
[400554670,1767714642018,-221.765393,0.00019178,2]
[400554672,1767714642028,-151.0,0.00019178,2]
[400554674,1767714642037,-151.0,0.00019178,2]
[400554676,1767714642046,-409.150764,0.00019178,2]
[400554678,1767714642056,-409.150764,0.00019178,2]
[400554680,1767714642065,-409.150764,0.00019178,2]
[400554682,1767714642074,-409.150764,0.00019178,2]
[400554684,1767714642084,-409.150764,0.00019178,2]
[400554685,1767714642094,-409.150764,0.00019178,2]
[400554688,1767714642104,-409.150764,0.00019178,2]
[400554689,1767714642113,-409.150764,0.00019178,2]
[400554691,1767714642122,-151.0,0.00019178,2]
[400554694,1767714642131,-151.0,0.00019178,2]
[400554695,1767714642141,-164.05427,0.00019178,2]
[400554698,1767714642150,-545.251366,0.00019178,2]
[400554700,1767714642160,-545.251366,0.00019178,2]
[400554702,1767714642170,-545.251366,0.00019178,2]
[400554703,1767714642179,-545.251366,0.00019178,2]
[400554705,1767714642188,-169.766567,0.00019178,2]
[400554707,1767714642197,-280.749142,0.00019178,2]
[400554709,1767714642207,-280.749142,0.00019178,2]
[400554711,1767714642216,-280.749142,0.00019178,2]
[400554713,1767714642225,-280.749142,0.00019178,2]
[400554715,1767714642235,-151.0,0.00019178,2]
[400554717,1767714642244,-193.586087,0.00019178,2]
[400554719,1767714642253,-151.0,0.00019178,2]
[400554721,1767714642263,-193.586087,0.00019178,2]
[400554723,1767714642272,-151.0,0.00019178,2]
[400554725,1767714642281,-193.586087,0.00019178,2]
[400554727,1767714642291,-193.586087,0.00019178,2]
[400554729,1767714642300,-151.0,0.00019178,2]
[400554731,1767714642310,-151.0,0.00019178,2]
[400554733,1767714642319,-151.0,0.00019178,2]
[400554735,1767714642328,-151.0,0.00019178,2]
[400554738,1767714642338,-151.0,0.00019178,2]
[400554741,1767714642347,-151.0,0.00019178,2]
[400554744,1767714642356,-182.954816,0.00019178,2]
[400554746,1767714642365,-153.743312,0.00019178,2]
[400554748,1767714642374,-153.789809,0.00019178,2]
[400554750,1767714642385,-176.133271,0.00019178,2]
[400554752,1767714642395,-151.0,0.00019178,2]
[400554754,1767714642404,-151.0,0.00019178,2]
[400554756,1767714642415,-5000.0,0.00019178,2]
[400554758,1767714642424,-5000.0,0.00019178,2]
[400554760,1767714642433,-5000.0,0.00019178,2]
[400554762,1767714642443,-5000.0,0.00019178,2]
[400554764,1767714642452,-151.893811,0.00019178,2]
[400554766,1767714642461,-176.786529,0.00019178,2]
[400554768,1767714642472,-176.786529,0.00019178,2]
[400554770,1767714642481,-176.786529,0.00019178,2]
[400554772,1767714642491,-176.786529,0.00019178,2]
[400554774,1767714642501,-151.0,0.00019178,2]
[400554776,1767714642510,-151.0,0.00019178,2]
[400554778,1767714642520,-151.0,0.00019178,2]
[400554780,1767714642529,-271.757998,0.00019178,2]
[400554782,1767714642538,-151.0,0.00019178,2]
[400554784,1767714642547,-264.296067,0.00019178,2]
[400554786,1767714642556,-151.0,0.00019178,2]
[400554788,1767714642566,-262.607866,0.00019178,2]
[400554790,1767714642575,-151.0,0.00019178,2]
[400554792,1767714642585,-151.0,0.00019178,2]
[400554794,1767714642595,-735.173477,0.00019178,2]
[400554796,1767714642604,-224.055312,0.00019178,2]
[400554798,1767714642613,-735.173477,0.00019178,2]
[400554800,1767714642623,-151.0,0.00019178,2]
[400554802,1767714642633,-861.5725249,0.00019195,10]
[400554804,1767714642642,-272.36,0.000192,2]
[400554806,1767714642651,-320.04,0.000192,2]
[400554808,1767714642660,-26028.52,0.000192,2]
[400554810,1767714642671,-2817.21,0.000192,2]
[400554812,1767714642680,-167.75,0.000192,2]
[400554814,1767714642690,-151.0,0.00019204,2]
[400554816,1767714642700,-151.0,0.00019204,2]
[400554818,1767714642709,-151.0,0.00019204,2]
[400554820,1767714642718,-151.0,0.00019204,2]
[400554822,1767714642727,-151.0,0.00019204,2]
[400554823,1767714642737,-735.173477,0.00019204,2]
[400554825,1767714642746,-735.173477,0.00019204,2]
[400554827,1767714642755,-151.0,0.00019204,2]
[400554829,1767714642764,-497.28977626,0.00019205,5]
[400554831,1767714642774,-151.0,0.00019219,2]
[400554833,1767714642783,-151.0,0.00019219,2]
[400554835,1767714642793,-155.649023,0.00019219,2]
[400554837,1767714642803,-151.0,0.00019219,2]
[400554839,1767714642812,-152.72294,0.00019219,2]
[400554841,1767714642821,-151.0,0.00019219,2]
[400554843,1767714642831,-151.0,0.00019219,2]
[400554845,1767714642840,-151.0,0.00019219,2]
[400554847,1767714642849,-151.0,0.00019219,2]
[400554849,1767714642859,-151.0,0.00019219,2]
[400554851,1767714642872,-151.0,0.00019219,2]
[400554853,1767714642881,-194.712966,0.00019219,2]
[400554855,1767714642891,-194.712966,0.00019219,2]
[400554857,1767714642901,-194.712966,0.00019219,2]
[400554859,1767714642911,-194.712966,0.00019219,2]
[400554861,1767714642920,-151.0,0.00019219,2]
[400554863,1767714642929,-251.543708,0.00019219,2]
[400554865,1767714642940,-251.543708,0.00019219,2]
[400554867,1767714642949,-251.543708,0.00019219,2]
[400554869,1767714642958,-251.543708,0.00019219,2]
[400554871,1767714642967,-151.0,0.00019219,2]
[400554873,1767714642977,-151.0,0.00019219,2]
[400554875,1767714642986,-151.0,0.00019219,2]
[400554877,1767714642995,-151.0,0.00019219,2]
[400554879,1767714643005,-151.0,0.00019219,2]
[400554880,1767714643014,-151.0,0.00019219,2]
[400554882,1767714643023,-257.45092,0.00019219,2]
[400554884,1767714643032,-151.0,0.00019219,2]
[400554886,1767714643042,-151.0,0.00019219,2]
[400554888,1767714643052,-151.0,0.00019219,2]
[400554890,1767714643061,-152.500089,0.00019219,2]
[400554892,1767714643071,-164.144536,0.00019219,2]
[400554894,1767714643080,-151.0,0.00019219,2]
[400554896,1767714643089,-164.144536,0.00019219,2]
[400554898,1767714643099,-151.0,0.00019219,2]
[400554900,1767714643108,-164.144536,0.00019219,2]
[400554902,1767714643117,-164.144536,0.00019219,2]
[400554904,1767714643127,-151.0,0.00019219,2]
[400554906,1767714643136,-181.542051,0.00019219,2]
[400554908,1767714643145,-181.542051,0.00019219,2]
[400554910,1767714643155,-151.0,0.00019219,2]
[400554912,1767714643164,-181.542051,0.00019219,2]
[400554914,1767714643174,-181.542051,0.00019219,2]
[400554916,1767714643183,-151.0,0.00019219,2]
[400554918,1767714643193,-151.0,0.00019219,2]
[400554920,1767714643202,-151.0,0.00019219,2]
[400554922,1767714643211,-655.31642,0.00019219,2]
[400554924,1767714643220,-655.31642,0.00019219,2]
[400554926,1767714643230,-655.31642,0.00019219,2]
[400554928,1767714643239,-655.31642,0.00019219,2]
[400554930,1767714643248,-151.0,0.00019219,2]
[400554932,1767714643257,-151.0,0.00019219,2]
[400554934,1767714643267,-151.0,0.00019219,2]
[400554936,1767714643276,-151.0,0.00019219,2]
[400554938,1767714643285,-151.0,0.00019219,2]
[400554940,1767714643295,-151.0,0.00019219,2]
[400554942,1767714643304,-151.0,0.00019219,2]
[400554944,1767714643314,-151.0,0.00019219,2]
[400554946,1767714643324,-151.0,0.00019219,2]
[400554948,1767714643333,-409.150764,0.00019219,2]
[400554949,1767714643345,-409.150764,0.00019219,2]
[400554951,1767714643355,-409.150764,0.00019219,2]
[400554953,1767714643364,-409.150764,0.00019219,2]
[400554955,1767714643373,-181.138598,0.00019219,2]
[400554957,1767714643383,-151.0,0.00019219,2]
[400554959,1767714643391,-251.46189,0.00019219,2]
[400554961,1767714643401,-545.251366,0.00019219,2]
[400554963,1767714643411,-545.251366,0.00019219,2]
[400554965,1767714643420,-545.251366,0.00019219,2]
[400554967,1767714643430,-545.251366,0.00019219,2]
[400554969,1767714643439,-287.718466,0.00019219,2]
[400554971,1767714643449,-280.749142,0.00019219,2]
[400554973,1767714643459,-280.749142,0.00019219,2]
[400554975,1767714643467,-280.749142,0.00019219,2]
[400554977,1767714643477,-280.749142,0.00019219,2]
[400554980,1767714643486,-269.170699,0.00019219,2]
[400554984,1767714643496,-269.170699,0.00019219,2]
[400554987,1767714643505,-269.170699,0.00019219,2]
[400554989,1767714643514,-269.170699,0.00019219,2]
[400554991,1767714643524,-151.0,0.00019219,2]
[400554993,1767714643533,-151.0,0.00019219,2]
[400554996,1767714643542,-193.586087,0.00019219,2]
[400554998,1767714643551,-193.586087,0.00019219,2]
[400555001,1767714643560,-151.0,0.00019219,2]
[400555004,1767714643569,-193.586087,0.00019219,2]
[400555007,1767714643578,-193.586087,0.00019219,2]
[400555010,1767714643587,-155.50541,0.00019219,2]
[400555012,1767714643597,-151.0,0.00019219,2]
[400555014,1767714643606,-151.0,0.00019219,2]
[400555016,1767714643616,-258.528484,0.00019219,2]
[400555018,1767714643625,-151.0,0.00019219,2]
[400555020,1767714643634,-618.008304,0.00019219,2]
[400555022,1767714643644,-618.008304,0.00019219,2]
[400555024,1767714643653,-618.008304,0.00019219,2]
[400555026,1767714643663,-151.0,0.00019219,2]
[400555028,1767714643672,-618.008304,0.00019219,2]
[400555030,1767714643682,-286.600994,0.00019219,2]
[400555032,1767714643691,-5000.0,0.00019219,2]
[400555034,1767714643700,-5000.0,0.00019219,2]
[400555036,1767714643709,-5000.0,0.00019219,2]
[400555038,1767714643719,-5000.0,0.00019219,2]
[400555040,1767714643728,-176.786529,0.00019219,2]
[400555042,1767714643737,-176.786529,0.00019219,2]
[400555044,1767714643748,-176.786529,0.00019219,2]
[400555046,1767714643757,-176.786529,0.00019219,2]
[400555048,1767714643766,-151.0,0.00019219,2]
[400555050,1767714643776,-162.040453,0.00019219,2]
[400555052,1767714643785,-151.0,0.00019219,2]
[400555054,1767714643795,-151.0,0.00019219,2]
[400555056,1767714643805,-303.43083173,0.00019278,2]
[400555058,1767714643815,-236.0,0.00019315,3]
[400555060,1767714643824,-1002.0,0.0001932,2]
[400555062,1767714643834,-151.0,0.00019341,2]
[400555064,1767714643843,-495.55928923,0.00019381,2]
[400555066,1767714643853,-3512.86180404,0.00019404,2]
[400555068,1767714643863,-151.0,0.00019404,2]
[400555070,1767714643876,-151.0,0.00019404,2]
[400555072,1767714643885,-151.0,0.00019404,2]
[400555074,1767714643894,-151.0,0.00019404,2]
[400555076,1767714643903,-151.0,0.00019404,2]
[400555078,1767714643914,-151.0,0.00019404,2]
[400555080,1767714643925,-151.0,0.00019404,2]
[400555082,1767714643934,-476.9323821,0.0001943,2]
[400555084,1767714643945,-3207.40519818,0.0001943,2]
[400555086,1767714643955,-1002.0,0.00019446,2]
[400555089,1767714643964,-1002.0,0.00019461,2]
[400555090,1767714643973,-1002.0,0.00019462,2]
[400555092,1767714643982,-1002.0,0.00019464,2]
[400555094,1767714643991,-303.43083173,0.00019467,2]
[400555096,1767714644002,-2000.0,0.00019476,7]
[400555098,1767714644011,-1002.0,0.00019483,2]
[400555100,1767714644020,-1717.276566,0.000195,2]
[400555103,1767714644031,-532.47496441,0.00019555,2]
[400555105,1767714644040,-277.4289045,0.0001956,2]
[400555106,1767714644049,-800.0,0.00019586,2]
[400555108,1767714644058,-303.43083173,0.00019656,2]
[400555110,1767714644067,-3691.24270092,0.00019711,7]
[400555112,1767714644076,-1002.0,0.00019743,2]
[400555114,1767714644087,-151.0,0.00019756,2]
[400555116,1767714644096,-1002.0,0.00019772,2]
[400555118,1767714644105,-449.0,0.000198,2]
[400555120,1767714644114,-678790.42814749,0.000198,2]
[400555122,1767714644124,-1002.0,0.00019803,2]
[400555124,1767714644133,-1000.0,0.00019835,2]
[400555126,1767714644142,-791.0,0.00019835,2]
[400555128,1767714644152,-455.14624759,0.00019845,4]
[400555130,1767714644161,-3326.07919052,0.00019978,2]
[400555132,1767714644170,-7255.0,0.0002,2]
[400555134,1767714644180,-11299.43839638,0.0002,2]
[400555136,1767714644189,-1045.0,0.0002,2]
[400555138,1767714644198,-1052.23075236,0.0002,2]
[400555140,1767714644207,-33705.33957013,0.0002,2]
[400555142,1767714644217,-644.63,0.0002,2]
[400555144,1767714644227,-1000.0,0.0002,2]
[400555146,1767714644236,-560.93238009,0.0002,7]
[400555148,1767714644246,-151.72757011,0.0002,2]
[400555150,1767714644255,-1000.0,0.0002,2]
[400555152,1767714644264,-250.0,0.0002,10]
[400555154,1767714644273,-1002.0,0.00020008,2]
[400555156,1767714644282,-455.14624759,0.00020034,4]
[400555158,1767714644292,-250.0,0.000201,10]
[400555160,1767714644301,-2000.0,0.00020133,7]
[400555162,1767714644311,-1002.0,0.00020155,2]
[400555164,1767714644320,-600.0,0.0002016,2]
[400555166,1767714644329,-151.0,0.00020171,2]
[400555168,1767714644342,-250.0,0.000202,10]
[400555170,1767714644351,-455.14624759,0.00020223,4]
[400555172,1767714644360,-1002.0,0.00020234,2]
[400555174,1767714644369,-250.0,0.000203,10]
[400555176,1767714644378,-188.11386458,0.00020342,2]
[400555178,1767714644387,-1002.0,0.00020359,2]
[400555180,1767714644397,-600.0,0.0002037,2]
[400555182,1767714644408,-250.0,0.000204,10]
[400555184,1767714644418,-516.08703705,0.00020412,4]
[400555186,1767714644428,-2817.21,0.000205,2]
[400555188,1767714644437,-366.171963,0.000205,10]
[400555190,1767714644446,-3449.14412057,0.00020526,2]
[400555192,1767714644456,-1002.0,0.00020533,2]
[400555194,1767714644465,-743.350005,0.00020548,2]
[400555196,1767714644475,-600.0,0.0002058,2]
[400555198,1767714644484,-151.0,0.00020585,2]
[400555200,1767714644493,-1002.0,0.00020587,2]
[400555201,1767714644502,-26028.52,0.000206,2]
[400555202,1767714644511,-168.0,0.00020684,2]
[400555203,1767714644520,-1002.0,0.00020779,2]
[400555204,1767714644529,-723.98055111,0.0002079,2]
[400555205,1767714644644,-2000.0,0.00020791,7]
[400555206,1767714644655,-272.36,0.000208,2]
[400555207,1767714644665,-320.04,0.000208,2]
[400555208,1767714644675,-1002.0,0.00020851,2]
[400555209,1767714644684,-1002.0,0.00020862,2]
[400555210,1767714644693,-1002.0,0.00020914,2]
[400555211,1767714644702,-1002.0,0.00020939,2]
[400555212,1767714644711,-186.0,0.00020959,3]
[400555213,1767714644720,-1364.653193,0.0002096,5]
[400555214,1767714644730,-1000.0,0.0002098,5]
[400555215,1767714644739,-2259.83405697,0.00021,2]
[400555216,1767714644748,-7097.0,0.00021,2]
[400555217,1767714644758,-277.02197138,0.00021,2]
[400555218,1767714644768,-27032.71808146,0.00021,2]
[400555219,1767714644778,-3000.0,0.00021,2]
[400555220,1767714644788,-1081.20658707,0.00021,10]
[400555221,1767714644797,-151.0,0.00021,2]
[400555222,1767714644807,-151.418138,0.00021,2]
[400555223,1767714644816,-151.0,0.00021,2]
[400555224,1767714644826,-151.0,0.00021,2]
[400555225,1767714644836,-153.976582,0.00021,2]
[400555226,1767714644847,-151.0,0.00021,2]
[400555227,1767714644856,-284.613576,0.00021,2]
[400555228,1767714644867,-151.0,0.00021,2]
[400555229,1767714644879,-151.0,0.00021,2]
[400555230,1767714644888,-194.712966,0.00021,2]
[400555231,1767714644898,-194.712966,0.00021,2]
[400555232,1767714644909,-194.712966,0.00021,2]
[400555233,1767714644918,-194.712966,0.00021,2]
[400555234,1767714644927,-151.0,0.00021,2]
[400555235,1767714644936,-151.0,0.00021,2]
[400555236,1767714644946,-177.092119,0.00021,2]
[400555237,1767714644955,-151.0,0.00021,2]
[400555238,1767714644965,-151.0,0.00021,2]
[400555239,1767714644974,-207.414308,0.00021,2]
[400555241,1767714644983,-153.79045,0.00021,2]
[400555243,1767714644993,-151.0,0.00021,2]
[400555244,1767714645002,-251.543708,0.00021,2]
[400555245,1767714645011,-251.543708,0.00021,2]
[400555247,1767714645020,-251.543708,0.00021,2]
[400555249,1767714645030,-251.543708,0.00021,2]
[400555251,1767714645039,-151.0,0.00021,2]
[400555252,1767714645048,-151.0,0.00021,2]
[400555254,1767714645057,-151.0,0.00021,2]
[400555256,1767714645066,-151.0,0.00021,2]
[400555258,1767714645075,-151.0,0.00021,2]
[400555259,1767714645085,-151.0,0.00021,2]
[400555261,1767714645094,-151.0,0.00021,2]
[400555263,1767714645103,-151.0,0.00021,2]
[400555265,1767714645111,-151.0,0.00021,2]
[400555267,1767714645121,-164.144536,0.00021,2]
[400555269,1767714645130,-151.0,0.00021,2]
[400555270,1767714645140,-164.144536,0.00021,2]
[400555272,1767714645150,-170.976512,0.00021,2]
[400555274,1767714645159,-1000.0,0.00021,5]
[400555275,1767714645168,-164.144536,0.00021,2]
[400555276,1767714645178,-164.144536,0.00021,2]
[400555277,1767714645187,-151.0,0.00021,2]
[400555278,1767714645196,-181.542051,0.00021,2]
[400555279,1767714645205,-181.542051,0.00021,2]
[400555280,1767714645215,-151.0,0.00021,2]
[400555281,1767714645224,-181.542051,0.00021,2]
[400555282,1767714645234,-181.542051,0.00021,2]
[400555283,1767714645243,-151.0,0.00021,2]
[400555284,1767714645252,-298.535992,0.00021,2]
[400555285,1767714645262,-158.624878,0.00021,2]
[400555286,1767714645271,-655.31642,0.00021,2]
[400555287,1767714645281,-655.31642,0.00021,2]
[400555288,1767714645290,-655.31642,0.00021,2]
[400555289,1767714645299,-655.31642,0.00021,2]
[400555291,1767714645308,-151.0,0.00021,2]
[400555292,1767714645317,-151.0,0.00021,2]
[400555293,1767714645327,-151.0,0.00021,2]
[400555294,1767714645337,-151.0,0.00021,2]
[400555295,1767714645346,-298.766655,0.00021,2]
[400555296,1767714645356,-151.0,0.00021,2]
[400555297,1767714645365,-219.213953,0.00021,2]
[400555298,1767714645374,-151.0,0.00021,2]
[400555299,1767714645384,-177.372841,0.00021,2]
[400555300,1767714645393,-409.150764,0.00021,2]
[400555301,1767714645402,-409.150764,0.00021,2]
[400555302,1767714645412,-409.150764,0.00021,2]
[400555303,1767714645421,-409.150764,0.00021,2]
[400555304,1767714645431,-151.0,0.00021,2]
[400555305,1767714645440,-545.251366,0.00021,2]
[400555306,1767714645449,-545.251366,0.00021,2]
[400555307,1767714645458,-545.251366,0.00021,2]
[400555308,1767714645467,-545.251366,0.00021,2]
[400555309,1767714645477,-151.0,0.00021,2]
[400555311,1767714645487,-280.749142,0.00021,2]
[400555313,1767714645496,-280.749142,0.00021,2]
[400555314,1767714645505,-280.749142,0.00021,2]
[400555315,1767714645515,-280.749142,0.00021,2]
[400555316,1767714645524,-269.170699,0.00021,2]
[400555317,1767714645533,-269.170699,0.00021,2]
[400555318,1767714645542,-269.170699,0.00021,2]
[400555319,1767714645551,-269.170699,0.00021,2]
[400555320,1767714645560,-151.0,0.00021,2]
[400555321,1767714645569,-193.586087,0.00021,2]
[400555322,1767714645578,-151.0,0.00021,2]
[400555323,1767714645588,-193.586087,0.00021,2]
[400555324,1767714645598,-151.0,0.00021,2]
[400555325,1767714645607,-193.586087,0.00021,2]
[400555326,1767714645616,-193.586087,0.00021,2]
[400555328,1767714645626,-151.0,0.00021,2]
[400555330,1767714645635,-151.0,0.00021,2]
[400555331,1767714645645,-618.008304,0.00021,2]
[400555332,1767714645654,-618.008304,0.00021,2]
[400555333,1767714645663,-263.925561,0.00021,2]
[400555335,1767714645673,-618.008304,0.00021,2]
[400555337,1767714645683,-618.008304,0.00021,2]
[400555338,1767714645692,-5000.0,0.00021,2]
[400555340,1767714645701,-5000.0,0.00021,2]
[400555341,1767714645711,-5000.0,0.00021,2]
[400555342,1767714645720,-5000.0,0.00021,2]
[400555343,1767714645730,-176.786529,0.00021,2]
[400555344,1767714645740,-176.786529,0.00021,2]
[400555345,1767714645750,-176.786529,0.00021,2]
[400555346,1767714645759,-176.786529,0.00021,2]
[400555347,1767714645768,-151.0,0.00021,2]
[400555348,1767714645778,-151.0,0.00021,2]
[400555349,1767714645787,-151.000002,0.00021,2]
[400555350,1767714645796,-151.0,0.00021,2]
[400555351,1767714645805,-151.0,0.00021,2]
[400555352,1767714645815,-151.0,0.00021,2]
[400555353,1767714645824,-151.0,0.00021,2]
[400555354,1767714645834,-170.332431,0.00021,2]
[400555355,1767714645843,-735.173477,0.00021,2]
[400555356,1767714645853,-735.173477,0.00021,2]
[400555357,1767714645863,-3000.0,0.0002101,2]
[400555358,1767714645876,-3000.0,0.0002102,2]
[400555359,1767714645885,-1002.0,0.00021028,2]
[400555360,1767714645895,-3000.0,0.0002103,2]
[400555361,1767714645904,-1002.0,0.00021034,2]
[400555362,1767714645915,-3000.0,0.0002104,2]
[400555363,1767714645925,-3000.0,0.0002105,2]
[400555364,1767714645935,-3000.0,0.0002106,2]
[400555365,1767714645944,-3000.0,0.0002107,2]
[400555366,1767714645954,-3576.76245303,0.00021074,2]
[400555367,1767714645965,-3000.0,0.0002108,2]
[400555368,1767714645976,-3000.0,0.0002109,2]
[400555369,1767714645985,-3000.0,0.000211,2]
[400555370,1767714645995,-3000.0,0.0002111,2]
[400555371,1767714646004,-3000.0,0.0002112,2]
[400555372,1767714646013,-3000.0,0.0002113,2]
[400555373,1767714646023,-3000.0,0.0002114,2]
[400555374,1767714646033,-3000.0,0.0002115,2]
[400555375,1767714646042,-3000.0,0.0002116,2]
[400555376,1767714646052,-3000.0,0.0002117,2]
[400555377,1767714646062,-1002.0,0.00021178,2]
[400555378,1767714646071,-3000.0,0.0002118,2]
[400555379,1767714646081,-3000.0,0.0002119,2]
[400555380,1767714646091,-3000.0,0.000212,2]
[400555381,1767714646101,-3000.0,0.0002121,2]
[400555382,1767714646110,-3000.0,0.0002122,2]
[400555383,1767714646120,-3000.0,0.0002123,2]
[400555384,1767714646129,-3000.0,0.0002124,2]
[400555385,1767714646139,-3000.0,0.0002125,2]
[400555386,1767714646148,-3000.0,0.0002126,2]
[400555387,1767714646157,-3000.0,0.0002127,2]
[400555388,1767714646167,-3000.0,0.0002128,2]
[400555389,1767714646176,-3000.0,0.0002129,2]
[400555390,1767714646186,-3000.0,0.000213,2]
[400555391,1767714646195,-3000.0,0.0002131,2]
[400555392,1767714646204,-3000.0,0.0002132,2]
[400555393,1767714646214,-3000.0,0.0002133,2]
[400555394,1767714646223,-3000.0,0.0002134,2]
[400555395,1767714646232,-3000.0,0.0002135,2]
[400555396,1767714646242,-3000.0,0.0002136,2]
[400555397,1767714646250,-3000.0,0.0002137,2]
[400555398,1767714646259,-3000.0,0.0002138,2]
[400555399,1767714646268,-542.50701137,0.00021381,2]
[400555400,1767714646278,-3000.0,0.0002139,2]
[400555401,1767714646287,-3000.0,0.000214,2]
[400555402,1767714646296,-3000.0,0.0002141,2]
[400555403,1767714646306,-3000.0,0.0002142,2]
[400555404,1767714646315,-4936.902076,0.0002143,2]
[400555405,1767714646324,-2000.0,0.00021449,7]
[400555406,1767714646334,-182.22687007,0.000215,2]
[400555407,1767714646344,-9874.50222365,0.00021619,2]